bitfinex-derivatives/quotes_BTCF0:USTF0_20250501
["timestamp","ask_amount","ask_price","bid_price","bid_amount"]
[1746098698952,0.5712323,95940.0,95939.0,0.18678134]
[1746098699255,0.5732723,95940.0,95939.0,0.18678134]
[1746098700165,0.9275043,95940.0,95939.0,0.08889164]
[1746098700461,0.73371319,95940.0,95939.0,0.08889164]
[1746098700765,0.73571319,95940.0,95939.0,0.08889164]
[1746098701149,0.73571319,95940.0,95939.0,0.00788134]
[1746098701350,0.2084366,95938.0,95937.0,0.00156352]
[1746098702052,0.3208366,95938.0,95937.0,0.00156352]
[1746098703255,0.3208366,95938.0,95937.0,0.12356352]
[1746098703763,0.3238366,95938.0,95937.0,0.12456352]
[1746098703966,0.4280726,95938.0,95937.0,0.12456352]
[1746098704261,0.4290726,95938.0,95937.0,0.12456352]
[1746098704467,0.8477726,95938.0,95937.0,0.12456352]
[1746098704967,0.8527726,95938.0,95937.0,0.12556352]
[1746098705654,0.8477726,95938.0,95937.0,0.13225904]
[1746098705863,0.8527726,95938.0,95937.0,0.13225904]
[1746098706058,0.7485766,95938.0,95937.0,0.13225904]
[1746098706263,0.6924766,95938.0,95937.0,0.13225904]
[1746098706458,0.6361366,95938.0,95937.0,0.44069784]
[1746098706657,0.6361366,95938.0,95937.0,0.23225904]
[1746098706860,0.6321366,95938.0,95937.0,0.23125904]
[1746098707071,0.6371766,95938.0,95937.0,0.26135001]
[1746098707258,0.6371766,95938.0,95937.0,0.23225904]
[1746098707463,0.6371366,95938.0,95937.0,0.23225904]
[1746098707766,0.6371766,95938.0,95937.0,0.23225904]
[1746098707963,0.6321766,95938.0,95937.0,0.23225904]
[1746098708159,0.6311766,95938.0,95937.0,0.23225904]
[1746098708359,0.6311366,95938.0,95937.0,0.23225904]
[1746098708666,0.2124766,95938.0,95937.0,0.13225904]
[1746098708853,0.2124766,95938.0,95937.0,0.23225904]
[1746098709457,0.2124766,95938.0,95937.0,0.13225904]
[1746098709657,0.2084766,95938.0,95937.0,0.13125904]
[1746098709859,0.2084766,95938.0,95937.0,0.13225904]
[1746098710062,0.2084766,95938.0,95937.0,0.23225904]
[1746098710461,0.2094766,95938.0,95937.0,0.23225904]
[1746098711065,0.2094766,95938.0,95937.0,0.13125904]
[1746098711269,0.2114766,95938.0,95937.0,0.13125904]
[1746098712373,0.2114766,95938.0,95937.0,0.23125904]
[1746098712870,0.3157126,95938.0,95937.0,0.13125904]
[1746098713067,0.4255126,95938.0,95937.0,0.13125904]
[1746098713271,0.4275126,95938.0,95937.0,0.12356352]
[1746098713867,0.4245126,95938.0,95937.0,0.12356352]
[1746098714072,0.4265126,95938.0,95937.0,0.12356352]
[1746098714370,0.2642766,95938.0,95937.0,0.12356352]
[1746098714761,0.2692766,95938.0,95937.0,0.12356352]
[1746098716175,0.2722766,95938.0,95937.0,0.12456352]
[1746098716774,0.2712766,95938.0,95937.0,0.12456352]
[1746098716966,0.6901926,95938.0,95937.0,0.12456352]
[1746098717171,0.6901926,95938.0,95937.0,0.09600222]
[1746098717172,0.4451926,95938.0,95937.0,0.09600222]
[1746098717769,0.4401926,95938.0,95937.0,0.09600222]
[1746098718073,0.4451926,95938.0,95937.0,0.09600222]
[1746098718672,0.4461926,95938.0,95937.0,0.09700222]
[1746098719372,0.4471926,95938.0,95937.0,0.09700222]
[1746098720376,0.4421926,95938.0,95937.0,0.09600222]
[1746098720576,0.4411926,95938.0,95937.0,0.09600222]
[1746098720773,0.4471926,95938.0,95937.0,0.09700222]
[1746098720977,0.3379566,95938.0,95937.0,0.09600222]
[1746098721163,0.3429566,95938.0,95937.0,0.09700222]
[1746098721368,0.3369566,95938.0,95937.0,0.09600222]
[1746098721569,0.3369566,95938.0,95937.0,0.09700222]
[1746098721570,0.3429566,95938.0,95937.0,0.09700222]
[1746098722074,0.3429566,95938.0,95937.0,0.09600222]
[1746098722382,0.2084475,95933.0,95932.0,6e-08]
[1746098722573,0.5692475,95933.0,95932.0,6e-08]
[1746098722884,0.6734875,95933.0,95932.0,6e-08]
[1746098723175,0.7431675,95933.0,95932.0,0.12200006]
[1746098723379,0.9020675,95933.0,95932.0,0.12200006]
[1746098723681,0.7978275,95933.0,95932.0,0.12200006]
[1746098724073,0.8018275,95933.0,95932.0,0.13085893]
[1746098724683,0.8068275,95933.0,95932.0,0.13185893]
[1746098726681,0.8028275,95933.0,95932.0,0.13085893]
[1746098726880,0.8078275,95933.0,95932.0,0.13185893]
[1746098727271,0.7551275,95933.0,95932.0,0.13185893]
[1746098727474,0.7551275,95933.0,95932.0,0.13185887]
[1746098728180,0.6854475,95933.0,95932.0,0.13185887]
[1746098728775,0.6854875,95933.0,95932.0,0.13185887]
[1746098729980,0.6335875,95933.0,95932.0,0.13185887]
[1746098732184,1.1565275,95933.0,95932.0,7e-08]
[1746098732379,0.2084844,95916.0,95915.0,0.00104258]
[1746098732684,0.93020012,95916.0,95915.0,0.00104258]
[1746098732986,0.93020012,95916.0,95905.0,0.1056]
[1746098732987,0.2085171,95901.0,95900.0,0.50263348]
[1746098733777,0.2085345,95893.0,95892.0,0.00010072]
[1746098733984,0.5673345,95893.0,95892.0,0.00010072]
[1746098734175,0.3608,95893.0,95892.0,0.13005061]
[1746098734370,0.5663745,95893.0,95892.0,0.12210072]
[1746098735271,0.6206745,95893.0,95892.0,0.12510072]
[1746098735476,0.6166745,95893.0,95892.0,0.12510072]
[1746098736286,0.6176745,95893.0,95892.0,0.12910072]
[1746098736579,0.6176745,95893.0,95892.0,0.13674435]
[1746098737884,0.7219585,95893.0,95892.0,5e-08]
[1746098738096,0.2085475,95887.0,95886.0,0.22434421]
[1746098738277,0.2085475,95887.0,95886.0,0.23219737]
[1746098738278,0.6389875,95887.0,95886.0,0.23219737]
[1746098738481,0.6389875,95887.0,95886.0,0.00785316]
[1746098738787,0.2085497,95886.0,95870.0,0.1089]
[1746098738983,0.31746246,95886.0,95870.0,0.1089]
[1746098739286,0.31746246,95886.0,95885.0,0.12304291]
[1746098739487,0.31546246,95886.0,95885.0,0.12304291]
[1746098739683,0.31550246,95886.0,95885.0,0.12304291]
[1746098740096,0.31650246,95886.0,95885.0,0.12504291]
[1746098740589,0.31750246,95886.0,95885.0,0.12504291]
[1746098741292,0.31750246,95886.0,95885.0,0.13299848]
[1746098742582,0.31750246,95886.0,95885.0,0.07985048]
[1746098742583,0.42179447,95886.0,95885.0,0.07985048]
[1746098743286,0.42179447,95886.0,95885.0,0.00995557]
[1746098743891,0.42179447,95886.0,95885.0,0.01095557]
[1746098743892,0.42875447,95886.0,95885.0,0.01095557]
[1746098744183,0.42875447,95886.0,95885.0,0.00895557]
[1746098744184,0.43579447,95886.0,95885.0,0.00895557]
[1746098745287,0.43579447,95886.0,95885.0,0.13095557]
[1746098745688,0.43279447,95886.0,95885.0,0.13095557]
[1746098745890,0.42479447,95886.0,95885.0,0.13095557]
[1746098746086,0.43279447,95886.0,95885.0,0.13095557]
[1746098746584,0.43479447,95886.0,95885.0,0.13095557]
[1746098748697,0.43379447,95886.0,95885.0,0.13095557]
[1746098748988,0.42579447,95886.0,95885.0,0.13095557]
[1746098749193,0.43179447,95886.0,95885.0,0.04669987]
[1746098749389,0.42568171,95886.0,95885.0,0.00791835]
[1746098749590,0.43279704,95886.0,95885.0,0.001]
[1746098750300,0.43279704,95886.0,95885.0,0.123]
[1746098750482,0.39814503,95886.0,95885.0,0.1306822]
[1746098750687,0.39114503,95886.0,95885.0,0.1296822]
[1746098750887,0.39810503,95886.0,95885.0,0.1306822]
[1746098751489,0.27266503,95886.0,95885.0,0.1306822]
[1746098751693,0.27270503,95886.0,95885.0,0.1306822]
[1746098751889,0.27266503,95886.0,95885.0,0.2306822]
[1746098752196,0.26670503,95886.0,95885.0,0.2296822]
[1746098752393,0.27366503,95886.0,95885.0,0.2306822]
[1746098752696,0.26670503,95886.0,95885.0,0.2306822]
[1746098752997,0.20866503,95886.0,95885.0,0.5839742]
[1746098753200,0.31599704,95886.0,95885.0,0.1306822]
[1746098753494,0.67679704,95886.0,95885.0,0.1306822]
[1746098753691,0.2085867,95869.0,95868.0,0.1049]
[1746098753887,0.5683867,95869.0,95868.0,0.1049]
[1746098754088,0.5683867,95869.0,95868.0,0.2269]
[1746098754497,0.6223867,95869.0,95868.0,0.2269]
[1746098755598,0.6213867,95869.0,95868.0,0.122]
[1746098755799,0.2086149,95856.0,95855.0,1e-08]
[1746098755993,0.56951013,95856.0,95855.0,0.00762423]
[1746098756196,0.56951013,95856.0,95855.0,0.12200001]
[1746098756393,0.56955013,95856.0,95855.0,0.12200001]
[1746098757195,0.57355013,95856.0,95855.0,0.12300001]
[1746098757498,0.57555013,95856.0,95855.0,0.12300001]
[1746098758002,0.57555013,95856.0,95855.0,0.13073995]
[1746098759501,0.63015013,95856.0,95855.0,0.13073995]
[1746098759698,0.68355013,95856.0,95855.0,0.13073995]
[1746098761005,0.68355013,95856.0,95855.0,0.05787815]
[1746098763397,0.68355013,95856.0,95855.0,0.02865665]
[1746098763604,0.68355013,95856.0,95855.0,5e-08]
[1746098763904,0.208652,95839.0,95838.0,0.0498]
[1746098764204,0.208652,95839.0,95838.0,0.2244]
[1746098764408,0.208652,95839.0,95838.0,0.122]
[1746098764703,0.569452,95839.0,95838.0,0.12987987]
[1746098764899,0.675452,95839.0,95838.0,0.12987987]
[1746098765292,0.676452,95839.0,95838.0,0.12987987]
[1746098765895,0.677452,95839.0,95838.0,0.13087987]
[1746098766096,0.623352,95839.0,95838.0,0.23087987]
[1746098766403,0.623352,95839.0,95838.0,0.13087987]
[1746098766994,0.623352,95839.0,95838.0,0.23537987]
[1746098767199,0.623392,95839.0,95838.0,0.23537987]
[1746098768301,0.6235057,95839.0,95838.0,0.13087987]
[1746098768802,0.6234657,95839.0,95838.0,0.13087987]
[1746098769101,0.6235057,95839.0,95838.0,0.13087987]
[1746098769319,0.6235057,95839.0,95838.0,0.18327987]
[1746098769608,0.6235057,95839.0,95838.0,0.23487987]
[1746098773999,0.6235057,95839.0,95838.0,0.13087987]
[1746098775207,0.6235057,95839.0,95838.0,0.18217987]
[1746098775901,0.6235057,95839.0,95838.0,0.23377987]
[1746098777408,0.6234657,95839.0,95838.0,0.23377987]
[1746098777619,0.6235057,95839.0,95838.0,0.23377987]
[1746098786217,0.6255057,95839.0,95838.0,0.23377987]
[1746098786813,0.2647057,95839.0,95838.0,0.23377987]
[1746098787017,0.0041537,95839.0,95838.0,0.54677796]
[1746098787317,0.0041137,95839.0,95838.0,0.64677796]
[1746098787721,0.0041537,95839.0,95838.0,0.64677796]
[1746098788118,0.0041537,95839.0,95838.0,0.89677796]
[1746098788420,0.0041137,95839.0,95838.0,0.89677796]
[1746098788616,0.0041537,95839.0,95838.0,1.25757796]
[1746098788820,0.0041537,95839.0,95838.0,1.00757796]
[1746098793841,0.00384978,95839.0,95838.0,1.00757796]
[1746098794937,0.00396987,95839.0,95838.0,1.00757796]
[1746098797546,5.401e-05,95848.0,95847.0,0.2086345]
[1746098797841,0.2086293,95850.0,95847.0,0.3086345]
[1746098798037,0.2086307,95849.0,95848.0,0.3086324]
[1746098798236,0.2626307,95849.0,95848.0,0.3578324]
[1746098798836,0.2626307,95849.0,95848.0,0.38321665]
[1746098799240,0.2626307,95849.0,95848.0,0.50521665]
[1746098799735,0.2656307,95849.0,95848.0,0.50521665]
[1746098800244,0.2706307,95849.0,95848.0,0.50621665]
[1746098801145,0.062,95849.0,95848.0,0.50621665]
[1746098803352,0.1116,95849.0,95848.0,0.50621665]
[1746098804343,0.3202302,95849.0,95848.0,0.50621665]
[1746098804547,0.1116,95849.0,95848.0,0.50621665]
[1746098804951,0.6810302,95849.0,95848.0,0.123]
[1746098806846,0.4724,95849.0,95848.0,0.123]
[1746098807043,0.6810702,95849.0,95848.0,0.223]
[1746098807444,0.6810702,95849.0,95848.0,0.123]
[1746098807745,0.6810702,95849.0,95848.0,0.223]
[1746098807947,0.6810302,95849.0,95848.0,0.223]
[1746098808149,0.6810702,95849.0,95848.0,0.123]
[1746098808349,0.6810702,95849.0,95848.0,0.223]
[1746098808746,0.6810702,95849.0,95848.0,0.123]
[1746098809151,0.6810702,95849.0,95848.0,0.223]
[1746098814858,0.6810702,95849.0,95848.0,0.123]
[1746098815046,0.6810702,95849.0,95848.0,0.223]
[1746098818250,0.47244,95849.0,95848.0,0.223]
[1746098818748,0.6810702,95849.0,95848.0,0.223]
[1746098820157,0.47244,95849.0,95848.0,0.223]
[1746098820356,0.1116,95849.0,95848.0,0.4316324]
[1746098820557,0.11164,95849.0,95848.0,0.4316324]
[1746098820960,0.1116,95849.0,95848.0,0.4808324]
[1746098821659,0.11164,95849.0,95848.0,0.2722]
[1746098821957,0.11164,95849.0,95848.0,0.4808324]
[1746098822161,0.11164,95849.0,95848.0,0.2722]
[1746098822548,0.11164,95849.0,95848.0,0.4808324]
[1746098823263,5.401e-05,95858.0,95848.0,0.376532]
[1746098823463,0.2086151,95856.0,95851.0,0.2086243]
[1746098823666,0.0514,95855.0,95852.0,0.2616225]
[1746098823859,0.0514,95855.0,95853.0,0.208621]
[1746098824162,0.03836371,95855.0,95853.0,0.308621]
[1746098824360,0.03836371,95855.0,95854.0,0.1057]
[1746098825161,0.03836371,95855.0,95854.0,0.2277]
[1746098825360,0.04136371,95855.0,95854.0,0.2277]
[1746098826162,0.24998081,95855.0,95854.0,0.2277]
[1746098826367,0.24998081,95855.0,95854.0,0.175]
[1746098826871,0.25098081,95855.0,95854.0,0.175]
[1746098827070,0.04236371,95855.0,95854.0,0.175]
[1746098827769,0.04336371,95855.0,95854.0,0.175]
[1746098827964,0.09396371,95855.0,95854.0,0.175]
[1746098828157,0.09396371,95855.0,95854.0,0.3836193]
[1746098828372,0.09396371,95855.0,95854.0,0.4341193]
[1746098829767,0.09396371,95855.0,95854.0,0.5384433]
[1746098829768,0.0556,95855.0,95854.0,0.5384433]
[1746098829975,0.3608,95867.0,95866.0,0.2085932]
[1746098830270,0.0529,95876.0,95875.0,0.2085736]
[1746098830473,0.0529,95876.0,95875.0,0.0231181]
[1746098830675,0.0529,95876.0,95875.0,0.2085736]
[1746098831168,0.05294,95876.0,95875.0,0.1736]
[1746098831472,0.0529,95876.0,95875.0,0.3821736]
[1746098831771,0.05294,95876.0,95875.0,0.3821736]
[1746098832157,0.00404,95876.0,95875.0,0.40483707]
[1746098832358,0.004,95876.0,95875.0,0.40483707]
[1746098832559,0.00404,95876.0,95875.0,0.40483707]
[1746098832766,0.00404,95876.0,95875.0,0.40583707]
[1746098832971,0.00804,95876.0,95875.0,0.40583707]
[1746098833567,0.00604,95876.0,95875.0,0.40483707]
[1746098833876,0.00604,95876.0,95875.0,0.50913706]
[1746098834073,0.00304,95876.0,95875.0,0.50913706]
[1746098836083,0.00304,95876.0,95875.0,0.40483707]
[1746098836576,0.00104,95876.0,95875.0,0.40483707]
[1746098836772,0.00104,95876.0,95875.0,0.40583707]
[1746098837576,4e-05,95876.0,95875.0,0.40583707]
[1746098837876,0.00104,95876.0,95875.0,0.40683707]
[1746098838275,4e-05,95876.0,95875.0,0.40683707]
[1746098842871,0.2086114,95876.0,95875.0,0.14666347]
[1746098843877,0.3110114,95876.0,95875.0,0.14666347]
[1746098846378,0.10244,95876.0,95875.0,0.14666347]
[1746098846582,0.10244,95876.0,95875.0,0.45523707]
[1746098847487,0.1024,95876.0,95875.0,0.50643707]
[1746098847784,5.401e-05,95884.0,95883.0,0.2085562]
[1746098847984,0.0533,95884.0,95883.0,0.2085562]
[1746098848185,0.0533,95884.0,95883.0,0.4817562]
[1746098849080,0.0563,95884.0,95883.0,0.4827562]
[1746098849871,0.0543,95884.0,95883.0,0.4827562]
[1746098850977,0.108,95884.0,95883.0,0.4827562]
[1746098852272,0.108,95884.0,95883.0,0.2742]
[1746098853087,0.316554,95884.0,95883.0,0.2742]
[1746098853579,0.316554,95884.0,95883.0,0.123]
[1746098853774,0.0521436,95875.0,95855.0,0.00156475]
[1746098853984,0.208594,95866.0,95860.0,0.1]
[1746098854287,0.3608,95871.0,95860.0,0.222]
[1746098854483,0.2086034,95862.0,95860.0,0.222]
[1746098854684,0.6194041,95861.0,95860.0,0.222]
[1746098854988,0.2586041,95861.0,95860.0,0.222]
[1746098855182,0.2586041,95861.0,95860.0,0.122]
[1746098855484,0.2586041,95861.0,95860.0,0.222]
[1746098855885,0.2586041,95861.0,95860.0,0.123]
[1746098856084,0.2586041,95861.0,95860.0,0.001]
[1746098857288,0.3131041,95861.0,95860.0,0.123]
[1746098857484,0.3151041,95861.0,95860.0,0.122]
[1746098857685,0.3161041,95861.0,95860.0,0.122]
[1746098858082,0.3151041,95861.0,95860.0,0.123]
[1746098858580,0.3141041,95861.0,95860.0,0.122]
[1746098858885,0.3161041,95861.0,95860.0,0.122]
[1746098859191,0.3171041,95861.0,95860.0,0.122]
[1746098860287,0.3161041,95861.0,95860.0,0.123]
[1746098860481,0.3141041,95861.0,95860.0,0.123]
[1746098860683,0.3161041,95861.0,95860.0,0.123]
[1746098861292,0.3141041,95861.0,95860.0,0.123]
[1746098861485,0.3161041,95861.0,95860.0,0.123]
[1746098863099,0.3151041,95861.0,95860.0,0.122]
[1746098863286,0.3161041,95861.0,95860.0,0.123]
[1746098863688,0.3151041,95861.0,95860.0,0.122]
[1746098863987,0.3171041,95861.0,95860.0,0.123]
[1746098864888,0.3161041,95861.0,95860.0,0.123]
[1746098865593,0.3161041,95861.0,95840.0,0.00156503]
[1746098865594,0.21182,95861.0,95840.0,0.00156503]
[1746098865783,0.2086476,95841.0,95840.0,0.00156503]
[1746098866190,0.2086476,95841.0,95840.0,0.12356503]
[1746098866694,0.3118476,95841.0,95840.0,0.22356503]
[1746098866892,0.3118476,95841.0,95840.0,0.12356503]
[1746098867096,0.3118476,95841.0,95840.0,0.17706503]
[1746098867789,0.3118476,95841.0,95840.0,0.23216503]
[1746098867993,0.3128476,95841.0,95840.0,0.23216503]
[1746098868394,0.6736476,95841.0,95840.0,0.23216503]
[1746098868593,0.6726476,95841.0,95840.0,0.23116503]
[1746098868793,0.6736476,95841.0,95840.0,0.23216503]
[1746098869799,0.6736476,95841.0,95840.0,0.33216503]
[1746098870099,0.6736476,95841.0,95840.0,0.23216503]
[1746098870285,0.3128476,95841.0,95840.0,0.23216503]
[1746098870489,0.6736476,95841.0,95840.0,0.23216503]
[1746098870898,0.6726476,95841.0,95840.0,0.23116503]
[1746098871095,0.6736476,95841.0,95840.0,0.23216503]
[1746098871492,0.6736476,95841.0,95840.0,0.33216503]
[1746098871802,0.6736476,95841.0,95840.0,0.23216503]
[1746098871999,0.6726476,95841.0,95840.0,0.33116503]
[1746098872187,0.6736476,95841.0,95840.0,0.33216503]
[1746098872393,0.6736476,95841.0,95840.0,0.23216503]
[1746098877105,0.6736476,95841.0,95840.0,0.12456503]
[1746098877795,0.6736476,95841.0,95840.0,0.17806503]
[1746098878391,0.6736476,95841.0,95840.0,0.23336503]
[1746098880303,0.3618,95841.0,95840.0,0.23336503]
[1746098880501,5.401e-05,95849.0,95840.0,0.79850503]
[1746098880705,7.291e-05,95855.0,95854.0,0.2086193]
[1746098881005,0.0522,95865.0,95854.0,0.4608]
[1746098881304,7.291e-05,95869.0,95866.0,0.2085927]
[1746098881606,7.291e-05,95869.0,95864.0,0.4129493]
[1746098881607,0.2085888,95868.0,95867.0,0.161]
[1746098882307,0.2086288,95868.0,95867.0,0.283]
[1746098884007,0.2106288,95868.0,95867.0,0.283]
[1746098884305,0.2645288,95868.0,95867.0,0.284]
[1746098885009,0.2106288,95868.0,95867.0,0.284]
[1746098886310,0.2096288,95868.0,95867.0,0.284]
[1746098886520,0.2116288,95868.0,95867.0,0.284]
[1746098887015,0.0521481,95867.0,95835.0,0.3608]
[1746098887208,0.2086285,95850.0,95848.0,0.1627]
[1746098887409,0.2648302,95849.0,95848.0,0.1627]
[1746098887609,0.2648302,95849.0,95848.0,0.3713324]
[1746098888121,0.2648302,95849.0,95848.0,0.1627]
[1746098888323,0.2648302,95849.0,95848.0,0.2847]
[1746098888818,0.2658302,95849.0,95848.0,0.2877]
[1746098889815,0.2658302,95849.0,95848.0,0.3877]
[1746098890119,0.2668302,95849.0,95848.0,0.2877]
[1746098890322,0.2658302,95849.0,95848.0,0.2847]
[1746098890621,0.2668302,95849.0,95848.0,0.2857]
[1746098891012,0.2668302,95849.0,95848.0,0.3857]
[1746098891722,0.2668302,95849.0,95848.0,0.7465]
[1746098892309,0.002,95849.0,95848.0,0.9551324]
[1746098892623,0.00204,95849.0,95848.0,0.9551324]
[1746098893525,5.401e-05,95858.0,95853.0,0.0521551]
[1746098893714,5.401e-05,95858.0,95857.0,0.5694128]
[1746098893910,0.2086041,95861.0,95860.0,0.1]
[1746098894114,0.2086011,95863.0,95860.0,0.1]
[1746098894313,0.0563,95865.0,95861.0,0.1082]
[1746098894314,0.2086019,95862.0,95861.0,0.1082]
[1746098894815,0.2086019,95862.0,95861.0,0.1639]
[1746098895119,0.0563,95865.0,95861.0,0.2859]
[1746098895316,0.2085958,95865.0,95861.0,0.4945032]
[1746098895523,5.401e-05,95866.0,95861.0,0.2859]
[1746098895825,0.20864741,95866.0,95861.0,0.4945039]
[1746098896016,0.05235401,95866.0,95861.0,0.2859]
[1746098896217,0.26094781,95866.0,95861.0,0.2859]
[1746098896416,0.05235401,95866.0,95861.0,0.2859]
[1746098897018,0.05235401,95866.0,95865.0,0.3608]
[1746098897219,0.26094721,95866.0,95865.0,0.4608]
[1746098897419,0.05235401,95866.0,95865.0,0.4608]
[1746098897824,0.26094721,95866.0,95865.0,0.4608]
[1746098898121,0.0523,95866.0,95865.0,0.5828]
[1746098898325,0.05234,95866.0,95865.0,0.5828]
[1746098898528,0.05234,95866.0,95865.0,0.7913954]
[1746098898825,0.05334,95866.0,95865.0,0.7913954]
[1746098899220,0.05334,95866.0,95865.0,0.5828]
[1746098899624,0.05434,95866.0,95865.0,0.5828]
[1746098900020,0.2629332,95866.0,95865.0,0.5828]
[1746098900219,0.2629332,95866.0,95865.0,0.122]
[1746098900523,0.2619332,95866.0,95865.0,0.123]
[1746098900727,0.3188332,95866.0,95865.0,0.123]
[1746098900927,0.3178332,95866.0,95865.0,0.123]
[1746098901126,0.3188332,95866.0,95865.0,0.123]
[1746098901527,0.3208332,95866.0,95865.0,0.124]
[1746098901930,0.3208332,95866.0,95865.0,0.123]
[1746098902733,0.3228332,95866.0,95865.0,0.123]
[1746098903634,0.3198332,95866.0,95865.0,0.122]
[1746098903829,0.3218332,95866.0,95865.0,0.123]
[1746098905734,0.3198332,95866.0,95865.0,0.123]
[1746098905935,0.3218332,95866.0,95865.0,0.123]
[1746098906536,0.3198332,95866.0,95865.0,0.123]
[1746098906834,0.3218332,95866.0,95865.0,0.123]
[1746098907235,0.3746332,95866.0,95865.0,0.123]
[1746098907832,0.3716332,95866.0,95865.0,0.122]
[1746098908033,0.3756332,95866.0,95865.0,0.123]
[1746098908734,0.3766332,95866.0,95865.0,0.123]
[1746098909534,0.3776332,95866.0,95865.0,0.123]
[1746098910135,0.2086019,95862.0,95861.0,0.00745891]
[1746098911029,0.2635019,95862.0,95861.0,0.00745891]
[1746098911232,0.2635019,95862.0,95861.0,0.12945891]
[1746098912124,0.2635019,95862.0,95861.0,0.22945891]
[1746098912329,0.2665019,95862.0,95861.0,0.23045891]
[1746098912529,0.2685019,95862.0,95861.0,0.23045891]
[1746098914437,0.2685019,95862.0,95861.0,0.13045891]
[1746098915436,0.2685019,95862.0,95861.0,0.23045891]
[1746098915634,0.005,95862.0,95861.0,0.43906301]
[1746098915837,5.401e-05,95871.0,95870.0,0.2085845]
[1746098916035,5.401e-05,95871.0,95870.0,0.6693845]
[1746098916430,0.0521412,95879.0,95875.0,0.2085736]
[1746098916626,0.2085707,95877.0,95876.0,0.1581]
[1746098917030,0.2085707,95877.0,95876.0,0.17799509]
[1746098917237,0.0576,95878.0,95876.0,0.29999509]
[1746098917539,0.0576,95878.0,95877.0,0.2085693]
[1746098917540,0.2661671,95878.0,95877.0,0.2085693]
[1746098918042,0.2661671,95878.0,95877.0,0.2666693]
[1746098918239,0.2661671,95878.0,95877.0,0.3886693]
[1746098919242,0.2671671,95878.0,95877.0,0.3906693]
[1746098919437,0.0586,95878.0,95877.0,0.3906693]
[1746098919943,0.0586,95878.0,95877.0,0.3896693]
[1746098920446,0.2671671,95878.0,95877.0,0.3896693]
[1746098920644,0.2661671,95878.0,95877.0,0.3896693]
[1746098920946,0.0576,95878.0,95877.0,0.3896693]
[1746098921840,0.2661671,95878.0,95877.0,0.3896693]
[1746098922147,0.0576,95878.0,95877.0,0.3896693]
[1746098922952,0.2661671,95878.0,95877.0,0.3896693]
[1746098923249,0.0576,95878.0,95877.0,0.3896693]
[1746098923439,5.401e-05,95880.0,95879.0,0.2085649]
[1746098923642,5.401e-05,95880.0,95879.0,0.5693649]
[1746098923843,0.0542,95884.0,95883.0,0.2085562]
[1746098924148,0.0542,95884.0,95883.0,0.3085562]
[1746098924546,0.262794,95884.0,95883.0,0.3085562]
[1746098924742,0.05424,95884.0,95883.0,0.3085562]
[1746098924943,0.05424,95884.0,95883.0,0.3095562]
[1746098925144,0.05424,95884.0,95883.0,0.4315562]
[1746098925753,0.05424,95884.0,95883.0,0.4305562]
[1746098926657,0.05524,95884.0,95883.0,0.4305562]
[1746098926956,0.05424,95884.0,95883.0,0.4305562]
[1746098927255,0.05524,95884.0,95883.0,0.4305562]
[1746098928048,0.05424,95884.0,95883.0,0.4305562]
[1746098928255,0.05524,95884.0,95883.0,0.4305562]
[1746098929954,0.0552,95884.0,95883.0,0.4305562]
[1746098930155,0.05524,95884.0,95883.0,0.4305562]
[1746098930758,0.001,95886.0,95885.0,0.2085519]
[1746098930946,0.0539,95903.0,95883.0,0.687092]
[1746098930947,0.052,95895.0,95894.0,0.2085323]
[1746098931151,0.2605301,95895.0,95894.0,0.222]
[1746098931452,0.2605301,95895.0,95894.0,0.4305323]
[1746098931651,0.2605701,95895.0,95894.0,0.4841323]
[1746098932049,0.05204,95895.0,95894.0,0.5376323]
[1746098932857,0.05204,95895.0,95894.0,0.54553546]
[1746098933651,0.05704,95895.0,95894.0,0.54553546]
[1746098936458,0.05704,95895.0,95894.0,0.90633546]
[1746098940559,0.05704,95895.0,95894.0,0.69780316]
[1746098941062,0.05704,95895.0,95894.0,0.90633546]
[1746098943155,0.05704,95895.0,95894.0,0.69780316]
[1746098943561,0.05704,95895.0,95894.0,0.90633546]
[1746098943864,0.10974,95895.0,95894.0,0.90633546]
[1746098944060,0.10974,95895.0,95894.0,0.64430316]
[1746098944463,0.10974,95895.0,95894.0,0.59070316]
[1746098945157,0.10974,95895.0,95894.0,0.79923546]
[1746098945465,0.057,95895.0,95894.0,0.79923546]
[1746098945662,0.05704,95895.0,95894.0,0.79923546]
[1746098945862,0.05704,95895.0,95894.0,0.90223546]
[1746098947369,0.057,95895.0,95894.0,0.90223546]
[1746098947568,0.05704,95895.0,95894.0,0.90223546]
[1746098947954,7.291e-05,95905.0,95904.0,0.2085105]
[1746098948269,0.2084907,95914.0,95904.0,0.2085105]
[1746098948270,0.0524,95913.0,95907.0,0.208504]
[1746098948463,0.0524,95913.0,95905.0,0.051]
[1746098948670,0.260891,95913.0,95912.0,0.3608]
[1746098949170,0.2084973,95911.0,95907.0,0.208504]
[1746098949358,0.2084977,95910.0,95907.0,0.01846808]
[1746098949560,0.1051,95909.0,95906.0,0.2085047]
[1746098950061,0.1051,95909.0,95906.0,0.3305047]
[1746098950982,0.3136004,95909.0,95906.0,0.122]
[1746098951379,0.1051,95909.0,95906.0,0.122]
[1746098951771,0.2085019,95908.0,95906.0,0.13996889]
[1746098951984,0.1051,95909.0,95906.0,0.34847399]
[1746098952186,0.1043,95907.0,95906.0,0.34847399]
[1746098953581,0.1043,95907.0,95906.0,0.40057399]
[1746098953775,0.1063,95907.0,95906.0,0.40057399]
[1746098956187,0.1063,95907.0,95906.0,0.19206889]
[1746098956386,0.1063,95907.0,95906.0,0.40057509]
[1746098962883,0.09327092,95907.0,95906.0,0.40057509]
[1746098963083,0.053,95907.0,95906.0,0.40057509]
[1746098971398,0.05317531,95916.0,95906.0,0.40057509]
[1746098971399,0.001,95916.0,95915.0,0.2084866]
[1746098971591,0.001,95916.0,95915.0,0.5692866]
[1746098971785,0.001,95916.0,95915.0,0.3608]
[1746098972090,0.00104,95916.0,95915.0,0.4652]
[1746098972286,0.00104,95916.0,95915.0,0.6872]
[1746098972494,0.00504,95916.0,95915.0,0.6872]
[1746098972688,0.00804,95916.0,95915.0,0.6872]
[1746098975396,0.00804,95916.0,95915.0,0.8956866]
[1746098976603,0.00804,95916.0,95915.0,0.6872]
[1746098976900,0.00804,95916.0,95915.0,0.70277132]
[1746098977202,0.00804,95916.0,95915.0,0.91125792]
[1746098978103,0.00804,95916.0,95915.0,0.70277132]
[1746098978295,0.00804,95916.0,95915.0,0.91125792]
[1746098978498,0.00804,95916.0,95915.0,0.91125956]
[1746098978804,0.2579807,95918.0,95915.0,0.34197296]
[1746098978993,0.2579807,95918.0,95916.0,0.01557296]